fUSD/lending_fUSD_20260130
["ID","MTS","AMOUNT","RATE_DAILY","PERIOD"]
[404073076,1769785853152,-363.468338,0.00030801,31]
[404073077,1769785853162,-200.0,0.00030895,2]
[404073078,1769785853171,-400.0,0.000309,2]
[404073079,1769785853180,-150.0,0.000309,2]
[404073080,1769785853190,-240.0,0.000309,10]
[404073081,1769785853201,-187.88,0.000309,23]
[404073082,1769785853211,-150.0,0.00030949,2]
[404073083,1769785853220,-17009.242769,0.0003095,2]
[404073084,1769785853229,-806.5,0.0003095,2]
[404073085,1769785853239,-5800.0,0.00030957,2]
[404073086,1769785853249,-400.0,0.0003097,2]
[404073087,1769785853258,-400.0,0.0003097,2]
[404073088,1769785853268,-5800.0,0.0003099,2]
[404073089,1769785853278,-51553.90913474,0.00031,2]
[404073090,1769785853288,-367.03008261,0.00031115,2]
[404073091,1769785853298,-7902.65188865,0.00031195,2]
[404073092,1769785853307,-22201.60347581,0.0003121,2]
[404073093,1769785853316,-152.0,0.00031211,3]
[404073094,1769785853326,-2999.11075539,0.0003127,2]
[404073095,1769785853336,-197.29809009,0.000315,2]
[404073096,1769785853345,-150.0,0.000315,2]
[404073097,1769785853355,-2008.29062061,0.000316,2]
[404073098,1769785853364,-200.0,0.00031611,2]
[404073099,1769785853374,-654.66271177,0.00031763,5]
[404073100,1769785853383,-1000.0,0.00031834,2]
[404073101,1769785853393,-2455.7,0.00032,7]
[404073102,1769785853402,-150.0,0.00032055,2]
[404073103,1769785853412,-7074.72576744,0.000321,2]
[404073104,1769785853425,-152.0,0.00032108,4]
[404073105,1769785853435,-500.0,0.0003216,2]
[404073106,1769785853450,-509.06,0.00032232,30]
[404073107,1769785853461,-893.92569461,0.000323,2]
[404073108,1769785853471,-559.46,0.00032598,2]
[404073109,1769785853481,-200.0,0.00032634,3]
[404073110,1769785853493,-4828.55297077,0.000328,2]
[404073111,1769785853503,-1000.0,0.00032834,2]
[404073112,1769785853513,-891.0,0.00032849,30]
[404073113,1769785853523,-5800.0,0.0003285,2]
[404073114,1769785853532,-5800.0,0.00032859,2]
[404073115,1769785853542,-5800.0,0.00032867,2]
[404073116,1769785853551,-1225.7,0.00032877,2]
[404073117,1769785853561,-344.66,0.00032877,2]
[404073118,1769785853571,-500.0,0.00032877,2]
[404073119,1769785853581,-500.0,0.00032877,2]
[404073120,1769785853590,-500.0,0.00032877,2]
[404073121,1769785853600,-355.61626445,0.00032877,2]
[404073122,1769785853610,-500.0,0.00032877,2]
[404073123,1769785853619,-500.0,0.00032877,2]
[404073124,1769785853630,-500.0,0.00032877,7]
[404073125,1769785853640,-500.0,0.00032877,7]
[404073126,1769785853650,-150.00680285,0.00032877,7]
[404073127,1769785853659,-500.0,0.00032877,7]
[404073128,1769785853796,-785.0,0.00032877,2]
[404073129,1769785853813,-1235.88,0.000329,14]
[404073130,1769785853823,-1204.0,0.00032914,2]
[404073131,1769785853833,-916.0,0.00032914,2]
[404073132,1769785853843,-5933.0,0.00032914,2]
[404073133,1769785853853,-2444.0,0.00032914,2]
[404073134,1769785853863,-785.0,0.00032932,2]
[404073135,1769785853873,-200.0,0.00032969,2]
[404073136,1769785853883,-785.0,0.00032987,2]
[404073137,1769785853892,-51286.29958946,0.00033,2]
[404073138,1769785853902,-26372.50329446,0.00033,2]
[404073139,1769785853911,-153.495017,0.00033,2]
[404073140,1769785853921,-557.958585,0.00033,14]
[404073141,1769785853931,-152.0,0.00033006,5]
[404073142,1769785853942,-785.0,0.00033041,2]
[404073143,1769785853952,-785.0,0.00033096,2]
[404073144,1769785853961,-785.0,0.00033151,2]
[404073145,1769785853971,-668.91911107,0.00033174,5]
[404073146,1769785853980,-785.0,0.00033206,2]
[404073147,1769785853991,-785.0,0.00033261,2]
[404073148,1769785854001,-785.0,0.00033315,2]
[404073149,1769785854011,-785.0,0.0003337,2]
[404073150,1769785854021,-757.6087095,0.0003338,2]
[404073151,1769785854030,-785.0,0.00033425,2]
[404073152,1769785854040,-785.0,0.0003348,2]
[404073153,1769785854049,-1210.9928289,0.000335,2]
[404073154,1769785854058,-2455.7,0.000335,14]
[404073155,1769785854068,-2455.7,0.000335,14]
[404073156,1769785854077,-4975.68,0.000335,2]
[404073157,1769785854088,-785.0,0.00033535,2]
[404073158,1769785854098,-200.0,0.0003354,2]
[404073159,1769785854108,-785.0,0.00033589,2]
[404073160,1769785854117,-200.0,0.00033624,2]
[404073161,1769785854127,-1000.0,0.0003363,2]
[404073162,1769785854137,-1000.0,0.0003363,2]
[404073163,1769785854146,-1000.0,0.0003363,2]
[404073164,1769785854156,-1000.0,0.0003363,2]
[404073165,1769785854165,-1000.0,0.0003363,2]
[404073166,1769785854175,-785.0,0.00033644,2]
[404073167,1769785854184,-1000.0,0.00033673,2]
[404073168,1769785854194,-1000.0,0.00033673,2]
[404073169,1769785854204,-1000.0,0.00033673,2]
[404073170,1769785854214,-1234.93210998,0.00033673,2]
[404073171,1769785854223,-785.0,0.00033699,2]
[404073172,1769785854232,-1235.88,0.000337,14]
[404073173,1769785854241,-785.0,0.00033754,2]
[404073174,1769785854251,-275.54112,0.00033754,31]
[404073175,1769785854260,-151.0,0.00033754,31]
[404073176,1769785854269,-152.08724,0.00033754,31]
[404073177,1769785854278,-785.0,0.00033809,2]
[404073178,1769785854288,-1000.0,0.00033834,2]
[404073179,1769785854297,-785.0,0.00033863,2]
[404073180,1769785854307,-152.0,0.00033903,6]
[404073181,1769785854316,-785.0,0.00033918,2]
[404073182,1769785854326,-500.0,0.00033939,60]
[404073183,1769785854335,-200.0,0.00033943,2]
[404073184,1769785854345,-785.0,0.00033973,2]
[404073185,1769785854355,-6000.0,0.00034,2]
[404073186,1769785854364,-6037.0,0.00034,5]
[404073187,1769785854374,-200.0,0.0003401,2]
[404073188,1769785854384,-785.0,0.00034028,2]
[404073189,1769785854393,-785.0,0.00034082,2]
[404073190,1769785854403,-151.0,0.00034137,31]
[404073191,1769785854412,-151.0,0.00034137,31]
[404073192,1769785854426,-151.0,0.00034137,31]
[404073193,1769785854435,-151.0,0.00034137,31]
[404073194,1769785854445,-151.0,0.00034137,31]
[404073195,1769785854455,-151.0,0.00034137,31]
[404073196,1769785854467,-453.602554,0.00034137,31]
[404073197,1769785854476,-453.602554,0.00034137,31]
[404073198,1769785854485,-162.124454,0.00034137,31]
[404073199,1769785854498,-152.102916,0.00034137,30]
[404073200,1769785854510,-151.0,0.00034137,31]
[404073201,1769785854520,-453.602554,0.00034137,31]
[404073202,1769785854530,-162.124454,0.00034137,31]
[404073203,1769785854541,-162.124454,0.00034137,31]
[404073204,1769785854551,-162.124454,0.00034137,31]
[404073205,1769785854562,-453.602554,0.00034137,31]
[404073206,1769785854571,-151.0,0.00034137,31]
[404073207,1769785854581,-151.0,0.00034137,31]
[404073208,1769785854590,-151.0,0.00034137,31]
[404073209,1769785854600,-151.0,0.00034137,31]
[404073210,1769785854610,-151.0,0.00034137,31]
[404073211,1769785854619,-151.0,0.00034137,31]
[404073212,1769785854629,-1001.92225,0.00034137,31]
[404073213,1769785854638,-151.0,0.00034137,31]
[404073214,1769785854648,-1001.92225,0.00034137,31]
[404073215,1769785854657,-151.0,0.00034137,31]
[404073216,1769785854667,-1001.92225,0.00034137,31]
[404073217,1769785854676,-1001.92225,0.00034137,31]
[404073218,1769785854686,-801.68916217,0.00034137,2]
[404073219,1769785854699,-1235.88,0.000343,14]
[404073220,1769785854709,-1774.63404526,0.00034356,2]
[404073221,1769785854720,-1730.31287324,0.0003449,2]
[404073222,1769785854730,-6521.16910662,0.000345,2]
[404073223,1769785854739,-2000.0,0.000345,2]
[404073224,1769785854749,-10029.08089338,0.000345,2]
[404073225,1769785854758,-150.0,0.00034521,2]
[404073226,1769785854768,-11241.7,0.00034679,2]
[404073227,1769785854778,-150.0,0.000347,30]
[404073228,1769785854788,-2455.7,0.000348,14]
[404073229,1769785854797,-4975.68,0.000348,2]
[404073230,1769785854807,-152.0,0.000348,7]
[404073231,1769785854817,-1156.60650541,0.00034822,30]
[404073232,1769785854827,-1000.0,0.00034834,2]
[404073233,1769785854837,-1235.88,0.000349,14]
[404073234,1769785854847,-1156.60650541,0.00034959,30]
[404073235,1769785854857,-300.0,0.00034999,10]
[404073236,1769785854867,-1916.40187958,0.00035,2]
[404073237,1769785854876,-1914.42842615,0.00035,2]
[404073238,1769785854886,-151.0,0.00035,7]
[404073239,1769785854895,-837.54,0.00035,2]
[404073240,1769785854905,-6072.967859,0.00035,25]
[404073241,1769785854915,-4975.68,0.00035,2]
[404073242,1769785854924,-151.0,0.00035,31]
[404073243,1769785854934,-239.85,0.00035,2]
[404073244,1769785854946,-300.0,0.00035095,10]
[404073245,1769785854956,-1156.60650541,0.00035096,30]
[404073246,1769785854966,-300.0,0.00035232,10]
[404073247,1769785854975,-1156.60650541,0.00035233,30]
[404073248,1769785854985,-300.0,0.00035369,10]
[404073249,1769785854995,-1156.60650541,0.0003537,30]
[404073250,1769785855005,-592.81,0.000354,30]
[404073251,1769785855015,-151.0,0.000355,7]
[404073252,1769785855024,-1156.60650541,0.00035507,30]
[404073253,1769785855035,-172.0287601,0.00035589,120]
[404073254,1769785855045,-157738.56858254,0.0003561,2]
[404073255,1769785855054,-10022.05016544,0.0003561,2]
[404073256,1769785855064,-185.995385,0.0003561,31]
[404073257,1769785855074,-151.0,0.0003561,31]
[404073258,1769785855083,-3034.744652,0.0003561,31]
[404073259,1769785855093,-3034.744652,0.0003561,31]
[404073260,1769785855103,-3034.744652,0.0003561,31]
[404073261,1769785855112,-3034.744652,0.0003561,31]
[404073262,1769785855122,-151.0,0.0003561,31]
[404073263,1769785855132,-199.347532,0.0003561,31]
[404073264,1769785855141,-1999.0,0.00035616,120]
[404073265,1769785855152,-500.0,0.00035616,7]
[404073266,1769785855163,-500.0,0.00035616,7]
[404073267,1769785855173,-500.0,0.00035616,7]
[404073268,1769785855184,-500.0,0.00035616,7]
[404073269,1769785855196,-506.33471503,0.00035616,7]
[404073270,1769785855206,-500.0,0.00035616,7]
[404073271,1769785855216,-500.0,0.00035616,7]
[404073272,1769785855226,-500.0,0.00035616,7]
[404073273,1769785855237,-500.0,0.00035616,7]
[404073274,1769785855248,-500.0,0.00035616,7]
[404073275,1769785855258,-554.67719724,0.00035616,7]
[404073276,1769785855267,-500.0,0.00035616,7]
[404073277,1769785855277,-1225.7,0.00035616,2]
[404073278,1769785855287,-161.06667531,0.00035616,2]
[404073279,1769785855296,-600.0,0.00035616,2]
[404073280,1769785855306,-1156.60650541,0.00035671,30]
[404073281,1769785855315,-152.0,0.00035697,8]
[404073282,1769785855325,-1156.60650541,0.00035808,30]
[404073283,1769785855334,-1000.0,0.00035834,2]
[404073284,1769785855343,-3001.63,0.00035914,2]
[404073285,1769785855353,-1156.60650541,0.00035945,30]
[404073286,1769785855364,-300.0,0.00035999,10]
[404073287,1769785855373,-300.0,0.00035999,10]
[404073288,1769785855383,-17380.64273594,0.00036,7]
[404073289,1769785855393,-234476.77163537,0.00036,2]
[404073290,1769785855402,-4817.38,0.00036,2]
[404073291,1769785855412,-4905.1,0.00036,14]
[404073292,1769785855424,-4975.68,0.00036,2]
[404073293,1769785855434,-151.0,0.00036,31]
[404073294,1769785855445,-151.0,0.00036,31]
[404073295,1769785855455,-285.375228,0.00036,31]
[404073296,1769785855466,-151.0,0.00036,31]
[404073297,1769785855476,-300.0,0.00036081,10]
[404073298,1769785855486,-1156.60650541,0.00036082,30]
[404073299,1769785855500,-756.08,0.00036113,10]
[404073300,1769785855510,-600.0,0.00036164,2]
[404073301,1769785855520,-300.0,0.00036199,10]
[404073302,1769785855530,-300.0,0.00036199,10]
[404073303,1769785855540,-2455.7,0.000362,14]
[404073304,1769785855550,-4975.68,0.000362,2]
[404073305,1769785855560,-1156.60650541,0.00036219,30]
[404073306,1769785855570,-1008.44,0.00036224,10]
[404073307,1769785855580,-1156.60650541,0.00036356,30]
[404073308,1769785855591,-300.0,0.00036501,10]
[404073309,1769785855602,-4116.17,0.00036502,10]
[404073310,1769785855611,-2301.74853,0.00036502,28]
[404073311,1769785855621,-2301.74853,0.00036502,28]
[404073312,1769785855631,-2301.74853,0.00036502,28]
[404073313,1769785855641,-2301.74853,0.00036502,28]
[404073314,1769785855650,-151.0,0.00036502,31]
[404073315,1769785855659,-152.0,0.00036595,9]
[404073316,1769785855669,-502.0,0.0003671,18]
[404073317,1769785855678,-1999.0,0.00036712,120]
[404073318,1769785855687,-600.0,0.00036712,2]
[404073319,1769785855702,-300.0,0.00036799,10]
[404073320,1769785855712,-1609.85624449,0.000368,2]
[404073321,1769785855721,-1953.96862332,0.000368,2]
[404073322,1769785855730,-1000.0,0.00036834,2]
[404073323,1769785855740,-300.0,0.00036909,10]
[404073324,1769785855750,-14119.66797433,0.0003691,2]
[404073325,1769785855760,-666.53,0.00036927,10]
[404073326,1769785855770,-150.0,0.00036986,2]
[404073327,1769785855780,-484.49,0.00036989,10]
[404073328,1769785855791,-165.58253001,0.00037,2]
[404073329,1769785855801,-300.0,0.00037032,10]
[404073330,1769785855812,-509.06,0.00037067,120]
[404073331,1769785855822,-300.0,0.0003709,10]
[404073332,1769785855832,-5000.0,0.00037091,2]
[404073333,1769785855841,-5000.0,0.00037091,2]
[404073334,1769785855852,-600.0,0.0003726,2]
[404073335,1769785855862,-1321.4,0.00037324,30]
[404073336,1769785855872,-3725.19,0.00037397,48]
[404073337,1769785855883,-288.218,0.00037397,48]
[404073338,1769785855893,-152.0,0.00037492,10]
[404073339,1769785855904,-4329.9496027,0.0003759,2]
[404073340,1769785855914,-502.0,0.00037694,19]
[404073341,1769785855924,-537.81,0.00037808,60]
[404073342,1769785855933,-1999.0,0.00037808,120]
[404073343,1769785855945,-600.0,0.00037808,2]
[404073344,1769785856180,-1000.0,0.00037834,2]
[404073345,1769785856236,-537.82,0.00037839,80]
[404073346,1769785856248,-537.82,0.00037869,100]
[404073347,1769785856258,-202.00141893,0.0003788,2]
[404073348,1769785856269,-537.81,0.000379,120]
[404073349,1769785856281,-4500.0,0.00038,6]
[404073350,1769785856291,-164.0,0.00038,21]
[404073351,1769785856301,-514735.58758535,0.00038,2]
[404073352,1769785857757,-462.0,0.000137,2]
[404073353,1769785857767,-287.0,0.00013728,2]
[404073354,1769785857778,-11266.93342123,0.00019554,2]
[404073355,1769785857787,-11266.93342123,0.00020866,2]
[404073356,1769785857797,-286.221529,0.00028,7]
[404073357,1769785857806,-430.951077,0.000309,5]
[404073358,1769785857816,-1025.46055157,0.00035914,2]
[404073359,1769785857828,-523.15921695,0.00035914,2]
[404073360,1769785858218,1000.0,0.00012997,2]
[404073361,1769785881789,1182.135,0.00012997,2]
[404073362,1769785887822,2500.0,0.00012997,2]
[404073363,1769785931775,6721.6209,0.00012997,2]
[404073364,1769785937609,237.2007,0.00012997,2]
[404073365,1769785968262,33275.4141,0.00012997,2]
[404073366,1769785983073,48718.16674509,0.00012997,2]
[404073367,1769785983109,2000000.0,0.00012997,2]
[404073369,1769786724837,1029.03756511,0.000108,2]
[404073370,1769786735320,8634.96243489,9e-05,2]
[404073371,1769786735345,6365.03756511,9e-05,2]
[404073372,1769786759912,23606.36185086,8e-05,2]
[404073373,1769786767691,-1492.95162022,0.00011,2]
[404073374,1769786770233,-1492.91734524,0.00011,2]
[404073375,1769786774066,-165.57782492,0.00011,2]
[404073376,1769786775561,-155.25477315,0.00011,2]
[404073377,1769786778827,-861.14175311,0.00011,2]
[404073378,1769786780274,-200.0,0.00011,2]
[404073379,1769786783962,-296.29609342,0.00011,2]
[404073380,1769786786506,-4771.00095222,0.00011,2]
[404073381,1769786786550,-458.00809556,0.00012456,2]
[404073382,1769786786898,-821.26190444,0.00012456,2]
[404073383,1769786786929,-1302.796333,0.00012576,2]
[404073384,1769786786959,-174.49590436,0.00012639,2]
[404073385,1769786786993,-237.36510389,0.00012655,2]
[404073386,1769786787024,-250.0,0.00012671,2]
[404073387,1769786787057,-254.0,0.00012703,2]
[404073388,1769786787087,-256.02963433,0.00012767,2]
[404073389,1769786787119,-1200.0,0.00012795,2]
[404073390,1769786787150,-300.0,0.00012795,2]
[404073391,1769786787280,-1350.59986619,0.00012796,2]
[404073392,1769786787310,-1978.78539733,0.00012796,2]
[404073393,1769786787341,-300.0,0.00012894,2]
[404073394,1769786787372,-300.0,0.00012894,2]
[404073395,1769786787405,-500.0,0.00012895,2]
[404073396,1769786787434,-558.33030131,0.00012895,2]
[404073397,1769786787782,-432.6911103,0.00012796,2]
[404073398,1769786787802,-10000.01,0.00012796,2]
[404073399,1769786787840,-4340.52700707,0.00012796,2]
[404073400,1769786787849,-24.57887034,0.00012895,2]
[404073401,1769786787859,-386.70261639,0.00012895,2]
[404073402,1769786787868,-500.0,0.00012895,2]
[404073403,1769786787877,-465.07574004,0.00012895,2]
[404073404,1769786787887,-500.0,0.00012895,2]
[404073405,1769786787896,-500.0,0.00012895,2]
[404073406,1769786787906,-500.0,0.00012895,2]
[404073407,1769786787917,-401.03334761,0.00012895,2]
[404073408,1769786787926,-161.35772157,0.00012895,2]
[404073409,1769786787935,-356.2518431,0.00012895,2]
[404073410,1769786787945,-500.0,0.00012895,2]
[404073411,1769786787954,-500.0,0.00012895,2]
[404073412,1769786787965,-500.0,0.00012895,2]
[404073413,1769786787975,-364.48285388,0.00012895,2]
[404073414,1769786788022,-135.51714612,0.00012895,2]
[404073415,1769786788059,-500.0,0.00012895,2]
[404073416,1769786788315,-500.0,0.00012895,2]
[404073417,1769786788354,-500.0,0.00012895,2]
[404073418,1769786788392,-500.0,0.00012895,2]
[404073419,1769786788434,-500.0,0.00012895,2]
[404073420,1769786788474,-500.0,0.00012895,2]
[404073421,1769786788513,-500.0,0.00012895,2]
[404073422,1769786788551,-500.0,0.00012895,2]
[404073423,1769786788587,-500.0,0.00012895,2]
[404073424,1769786788622,-228.97570776,0.00012895,2]
[404073425,1769786788972,-271.02429224,0.00012895,2]
[404073426,1769786788982,-500.0,0.00012895,2]
[404073427,1769786788992,-557.74287263,0.00012895,2]
[404073428,1769786789001,-500.0,0.00012895,2]
[404073429,1769786789011,-500.0,0.00012895,2]
[404073430,1769786789021,-500.0,0.00012895,2]
[404073431,1769786789030,-500.0,0.00012895,2]
[404073432,1769786789040,-500.0,0.00012895,2]
[404073433,1769786789049,-500.0,0.00012895,2]
[404073434,1769786789059,-155.77428727,0.00012895,2]
[404073435,1769786789069,-500.0,0.00012895,2]
[404073436,1769786789079,-150.97569398,0.00012895,2]
[404073437,1769786789131,-349.02430602,0.00012895,2]
[404073438,1769786789170,-500.0,0.00012895,2]
[404073439,1769786789206,-500.0,0.00012895,2]
[404073440,1769786789244,-500.0,0.00012895,2]
[404073441,1769786789283,-500.0,0.00012895,2]
[404073442,1769786789320,-500.0,0.00012895,2]
[404073443,1769786789358,-500.0,0.00012895,2]
[404073444,1769786789395,-500.0,0.00012895,2]
[404073445,1769786789431,-500.0,0.00012895,2]
[404073446,1769786789468,-500.0,0.00012895,2]
[404073447,1769786789725,-286.4928401,0.00012895,2]
[404073448,1769786789874,-213.5071599,0.00012895,2]
[404073449,1769786789884,-135.51714612,0.00012895,2]
[404073450,1769786789900,-364.48285388,0.00012895,2]
[404073451,1769786789909,-135.51714612,0.00012895,2]
[404073452,1769786789925,-364.48285388,0.00012895,2]
[404073453,1769786789934,-135.51714612,0.00012895,2]
[404073454,1769786789977,-364.48285388,0.00012895,2]
[404073455,1769786790014,-500.0,0.00012895,2]
[404073456,1769786790051,-500.0,0.00012895,2]
[404073457,1769786790087,-500.0,0.00012895,2]
[404073458,1769786790124,-500.0,0.00012895,2]
[404073459,1769786790161,-500.0,0.00012895,2]
[404073460,1769786790197,-500.0,0.00012895,2]
[404073461,1769786790235,-500.0,0.00012895,2]
[404073462,1769786790272,-500.0,0.00012895,2]
[404073463,1769786790309,-500.0,0.00012895,2]
[404073464,1769786790452,-291.0,0.00012895,2]
[404073465,1769786790486,-150.0,0.00012895,2]
[404073466,1769786816742,3162.63673906,0.00012851,2]
[404073467,1769786817464,5955.37326094,0.00012851,2]
[404073468,1769786817496,2390.87513124,0.00012851,2]
[404073469,1769786823152,150.0,0.00012895,2]
[404073473,1769786837652,400.0,0.000127,4]
[404073474,1769786838275,166.48,0.00015,4]
[404073475,1769786839353,166.48,0.000142,5]
[404073476,1769786839740,900.0,0.000128,4]
[404073477,1769786841840,1400.0,0.000129,4]
[404073478,1769786843933,1800.0,0.000139,5]
[404073479,1769786859750,7459.13486876,0.0001289,2]
[404073480,1769786859780,10000.01,0.0001289,2]
[404073481,1769786859805,10000.01,0.0001289,2]
[404073482,1769786859832,10000.01,0.0001289,2]
[404073483,1769786859858,10000.01,0.0001289,2]
[404073484,1769786859884,10000.01,0.0001289,2]
[404073485,1769786859910,10000.01,0.0001289,2]
[404073486,1769786860211,10000.01,0.0001289,2]
[404073487,1769786860238,10000.01,0.0001289,2]
[404073488,1769786860263,10000.01,0.0001289,2]
[404073489,1769786862892,-882.0,0.0001289,2]
[404073490,1769786863010,-10000.01,0.0001289,2]
[404073491,1769786863142,-10000.01,0.0001289,2]
[404073492,1769786863296,-10000.01,0.0001289,2]
[404073493,1769786863591,-10000.01,0.0001289,2]
[404073494,1769786867508,-10000.01,0.0001289,2]
[404073495,1769786867697,-10000.01,0.0001289,2]
[404073496,1769786867891,-10000.01,0.0001289,2]
[404073497,1769786868086,-10000.01,0.0001289,2]
[404073498,1769786868246,-10000.01,0.0001289,2]
[404073499,1769786868401,-10000.01,0.0001289,2]
[404073500,1769786868553,-3511.15785112,0.0001289,2]
[404073501,1769786868579,-2977.69429776,0.0001289,2]
[404073502,1769786868724,-10000.01,0.00012896,2]
[404073503,1769786868914,-10000.01,0.00012896,2]
[404073504,1769786869051,-10000.01,0.00012896,2]
[404073505,1769786869176,-10000.01,0.00012896,2]
[404073506,1769786869284,-10000.01,0.00012896,2]
[404073507,1769786869395,-10000.01,0.00012896,2]
[404073508,1769786869505,-10000.01,0.00012896,2]
[404073509,1769786869947,-10000.01,0.00012896,2]
[404073510,1769786873765,-10000.01,0.00012896,2]
[404073511,1769786874021,-10000.01,0.00012896,2]
[404073512,1769786874199,-10000.01,0.00012896,2]
[404073513,1769786874379,-10000.01,0.00012896,2]
[404073514,1769786874529,-10000.01,0.00012896,2]
[404073515,1769786874734,-10000.01,0.00012896,2]
[404073516,1769786874935,-10000.01,0.00012896,2]
[404073517,1769786875097,-10000.01,0.00012896,2]
[404073518,1769786875251,-10000.01,0.00012896,2]
[404073519,1769786875429,-10000.01,0.00012896,2]
[404073520,1769786875656,-10000.01,0.00012896,2]
[404073521,1769786875757,-10000.01,0.00012896,2]
[404073522,1769786875882,-10000.01,0.00012896,2]
[404073523,1769786876092,-10000.01,0.00012896,2]
[404073524,1769786876218,-10000.01,0.00012896,2]
[404073525,1769786899871,603.88230624,0.00012796,2]
[404073526,1769786901833,-300.0,0.00012895,2]
[404073527,1769786902047,1716.17343246,0.00012796,2]
[404073528,1769786902783,649.36910503,0.00012895,2]
[404073529,1769786902828,4173.74670489,0.00012895,2]
[404073530,1769786902881,174.48261702,0.00012895,2]
[404073531,1769786902936,1273.29157306,0.00012895,2]
[404073532,1769786906583,1412.94656754,0.00012796,2]
[404073533,1769786911399,-1087.05343246,0.00012796,2]
[404073534,1769786917647,5684.48494275,0.0001,2]
[404073535,1769786946017,-249.73670192,0.00012796,2]
[404073536,1769786954891,9500.53659616,0.00012796,2]
[404073540,1769787007761,818.634529,7.945e-05,2]
[404073553,1769787031804,-1391.02330001,0.000127,2]
[404073554,1769787031814,-500.036556,0.00012732,2]
[404073556,1769787031824,-254.0,0.00012732,2]
[404073558,1769787031839,-300.0,0.00012795,2]
[404073560,1769787031849,-1200.0,0.00012795,2]
[404073561,1769787031858,-500.0,0.00012795,2]
[404073563,1769787031868,-12068.09576533,0.00012796,2]
[404073564,1769787031878,-728.40538135,0.00012796,2]
[404073565,1769787031887,-533.03696756,0.00012886,2]
[404073566,1769787031900,-150.0,0.00012895,2]
[404073567,1769787031910,-6046.85468868,0.00012896,2]
[404073568,1769787031921,-23072.0646081,0.00012896,2]
[404073569,1769787031934,-14871.77253407,0.00012896,2]
[404073570,1769787031947,-853.06165973,0.00012896,2]
[404073571,1769787031958,-889.22490028,0.00012896,2]
[404073572,1769787031969,-8358.6192992,0.00012896,2]
[404073573,1769787031983,-925.50355784,0.00012896,2]
[404073574,1769787031998,-529.74179822,0.00012896,2]
[404073575,1769787032009,-488.41,0.00012896,2]
[404073576,1769787032021,-1617.34995375,0.00012896,2]
[404073577,1769787032032,-719.62920142,0.00012896,2]
[404073578,1769787032063,-974.05877356,0.00012896,2]
[404073579,1769787032076,-391.79873412,0.00012896,2]
[404073580,1769787038175,-525.61947259,0.00012895,2]
[404073581,1769787038185,-158.57333213,0.00012895,2]
[404073582,1769787038194,-640.99719528,0.00012896,2]
[404073583,1769787038206,-460.79832043,0.00012896,2]
[404073584,1769787038217,-6814.94453654,0.00012896,2]
[404073585,1769787038229,-713.71647197,0.00012896,2]
[404073586,1769787038240,-1278.67774301,0.00012896,2]
[404073587,1769787038251,-524.9418109,0.00012896,2]
[404073588,1769787038262,-901.15049109,0.00012896,2]
[404073589,1769787038273,-924.0788095,0.00012896,2]
[404073590,1769787038285,-409.67048627,0.00012896,2]
[404073591,1769787038296,-2444.83323628,0.00012896,2]
[404073592,1769787038307,-4349.99954843,0.00012896,2]
[404073596,1769787040187,-500.0,0.00012895,2]
[404073597,1769787040198,-500.0,0.00012895,2]
[404073598,1769787040207,-500.0,0.00012895,2]
[404073599,1769787040216,-500.0,0.00012895,2]
[404073600,1769787040226,-500.0,0.00012895,2]
[404073601,1769787040236,-301.57598693,0.00012895,2]